Workbook

Sheet Sheet1
A1: 工程名称:民科园7号宿舍楼北楼二层改造工程
A2: 序号 | B2: 项目编码 | D2: 项目名称 | E2: 项目特征描述 | G2: 计量单位 | H2: 工程量 | I2: 金额(元)
I3: 综合单价 | K3: 合价
D5: 装修部分 | K5: =SUM(K6:K10) -> 32011.31
A6: 1 | B6: 011403001001 | D6: 墙面乳胶漆 | E6: 1.抹灰面乳胶漆 墙柱面 面漆一遍 | G6: m2 | H6: 1638.520 | I6: 6.04 | K6: =H6*I6 -> 9896.66
A7: 2 | B7: 011403001002 | D7: 天棚面乳胶漆 | E7: 1.抹灰面乳胶漆 天棚面 面漆一遍 | G7: m2 | H7: 561.000 | I7: 6.77 | K7: =H7*I7 -> 3797.97
A8: 3 | B8: 010805006001 | D8: 更换宿舍门 | E8: 1.带门套成品装饰平开复合木门 单开 2.单开门锁 3.成品复合门 900*2300 | G8: 樘 | H8: 12.000 | I8: 648.58 | K8: =H8*I8 -> 7782.96
A9: 4 | B9: 010805006002 | D9: 更换宿卫生间门 | E9: 1.带门套成品装饰平开复合木门 单开 2.成品复合门 700*2100 | G9: 樘 | H9: 24.000 | I9: 374.24 | K9: =H9*I9 -> 8981.76
A10: 5 | B10: 010801001001 | D10: 拆除原门 | E10: 1.门窗拆除(整樘) 木质 2.拆除废料外运 人工装自卸汽车运 5km//扩:A1-19-69+A1-19-70*2 | G10: 樘 | H10: 36.000 | I10: 43.11 | K10: =H10*I10 -> 1551.96
D11: 安装部分 | K11: =SUM(K12:K29) -> 31389.37
A12: 1 | B12: 031002003001 | D12: 塑料龙头 DN15 | E12: 1.单冷水龙头安装 公称直径(mm以内) 15 2.塑料龙头 DN15 | G12: 个 | H12: 24.000 | I12: 8.26 | K12: =H12*I12 -> 198.24
A13: 2 | B13: 030409001001 | D13: 电力电缆 WDZ-YJY4*120+1*70 | E13: 1.铜芯电力电缆敷设 电缆(截面mm2以下) 120 2.铜芯电缆 WDZ-YJV-4X120+1X70 | G13: m | H13: 12.000 | I13: 447.36 | K13: =H13*I13 -> 5368.32
A14: 3 | B14: 030409001002 | D14: 电力电缆 WDZ-YJY4*25+1*16 | E14: 1.铜芯电力电缆敷设 电缆(截面mm2以下) 35//扩:C4-8-2+补C4-8-2 2.铜芯电缆 WDZ-YJV-4*25+1*16 | G14: m | H14: 45.800 | I14: 109.00 | K14: 4992.20
A15: 4 | B15: 030412004001 | D15: 配线 BV-4.0 | E15: 1.硬绝缘导线管内穿线 导线截面(mm2以内) 6 2.绝缘电线 BV-4.0 | G15: m | H15: 1286.000 | I15: 4.45 | K15: 5722.70
A16: 5 | B16: 030413003004 | D16: LED灯管 T8 | E16: 1.普通成套型荧光灯具安装 吸顶式 单管 2.LED灯管（含灯座） 20W 1.2米 | G16: 套 | H16: 24.000 | I16: 53.43 | K16: 1282.32
A17: 6 | B17: 030413003005 | D17: LED灯管 T8 | E17: 1.普通成套型荧光灯具安装 吸顶式 单管 2.LED灯管（含灯座） 10W 0.6米 | G17: 套 | H17: 12.000 | I17: 47.62 | K17: 571.44
A18: 7 | B18: 030413003006 | D18: LED节能灯 5W | E18: 1.其他普通灯具安装 防水座灯头 2.LED节能灯 5W | G18: 套 | H18: 24.000 | I18: 16.79 | K18: 402.96
A19: 8 | B19: 030413014003 | D19: 二三插座 | E19: 1.控制设备及低压电器安装 单相暗插座安装 单相（A以下） 16 2.二三插座 | G19: 套 | H19: 48.000 | I19: 18.38 | K19: 882.24
A20: 9 | B20: 030413013001 | D20: 二位开关 | E20: 1.控制设备及低压电器安装 照明开关安装 扳式暗开关(单控) 双联 2.二位开关 | G20: 套 | H20: 12.000 | I20: 18.39 | K20: 220.68
A21: 10 | B21: 030413013002 | D21: 三位开关 | E21: 1.控制设备及低压电器安装 照明开关安装 扳式暗开关(单控) 三联 2.三位开关 | G21: 套 | H21: 12.000 | I21: 20.30 | K21: 243.60
A22: 11 | B22: 030413014001 | D22: 空调插座 | E22: 1.控制设备及低压电器安装 单相明插座安装 单相（A以下） 16 2.空调插座 3.配电板 4.接线盒安装 普通接线盒 明装 5.接线盒 | G22: 套 | H22: 12.000 | I22: 37.65 | K22: 451.80
A23: 12 | B23: 030413014002 | D23: 热水器插座 | E23: 1.控制设备及低压电器安装 单相明插座安装 单相（A以下） 16 2.热水器插座 3.配电板 4.接线盒安装 普通接线盒 明装 5.接线盒 | G23: 套 | H23: 12.000 | I23: 37.65 | K23: 451.80
A24: 13 | B24: 030412002001 | D24: PVC塑料线槽 | E24: 1.难燃线槽安装 线槽断面周长(mm以内) 120 2.塑料线槽100*60 | G24: m | H24: 50.000 | I24: 34.84 | K24: 1742.00
A25: 14 | B25: 030412001001 | D25: 配管 PC25 | E25: 1.刚性难燃线管砖、混凝土结构明配 公称直径(mm以内) 25 2.刚性难燃管 PC25 | G25: m | H25: 84.000 | I25: 17.86 | K25: 1500.24
A26: 15 | B26: 030412001002 | D26: 配管 PC65 | E26: 1.刚性难燃线管砖、混凝土结构明配 公称直径(mm以内) 65 2.刚性难燃管 PC65 | G26: m | H26: 37.000 | I26: 26.28 | K26: 972.36
A27: 16 | B27: 030405013002 | D27: 更换空气开关（20A) | E27: 1.控制设备及低压电器安装 DZ自动空气断路器安装 额定电流(A以内) 32 2.自动空气断路器 DZ型 20A/2P | G27: 个 | H27: 12.000 | I27: 46.32 | K27: 555.84
A28: 17 | B28: 030402011001 | D28: 配电箱 | E28: 1.控制设备及低压电器安装 成套配电箱安装 悬挂式(半周长m以内) 1.5 2.成套配电箱（含空气开关） | G28: 台 | H28: 1.000 | I28: 5491.24 | K28: 5491.24
A29: 18 | B29: 030405013001 | D29: 更换空气开关（250A) | E29: 1.控制设备及低压电器安装 DZ自动空气断路器安装 额定电流(A以内) 250 2.自动空气断路器 DZ型 250A | G29: 个 | H29: 1.000 | I29: 339.39 | K29: 339.39
D30: 其他费用 | K30: =K31 -> 6673.51
A31: 19 | D31: 增值税 | K31: 6673.51
A32: 合 计 | K32: =K5+K11+K30 -> 70074.19
